Cogmind - Beta 14 @@@ ROGUE MODE // 2025.03.08 @ 09:45:58 Player: Nika Jay Result: Self-destructed Performance ------------- Evolutions (1) 500 Regions Visited (3) 600 Robots Destroyed (23) 115 Value Destroyed (343) 343 Prototype IDs (0) 0 Alien Tech Used (0) 0 Bonus (6) 6 TOTAL SCORE: 1564 Bonus ------- High Alert Combat Kills 6 Cogmind --------- Core Integrity 363/400 Matter 300/300 Energy 250/250 System Corruption 0% Temperature Cool (0) Movement Rolling (95) Ox1 Location -9/Mines Parts ------- > --- POWER (1) -------- Ion Engine > --- PROPULSION (2) --- Wheel Wheel > --- UTILITY (3) ------ Disposable Heat Sink Large Storage Unit Light Armor Plating > --- WEAPON (3) ------- Medium Laser Small Laser Assault Rifle > --- INVENTORY (15) --- Light Ion Engine Wheel Wheel Wheel Wheel High-capacity Matter Pod (200) Signal Interpreter Seismic Detector Seismic Detector Beam Rifle Autogun Autogun Autogun Autogun Rocket Launcher Peak State ------------ > --- POWER ------------ Ion Engine > --- PROPULSION ------- Wheel Wheel > --- UTILITY ---------- Disposable Heat Sink Large Storage Unit Light Armor Plating > --- WEAPON ----------- Medium Laser Small Laser Assault Rifle > --- INVENTORY -------- Light Ion Engine Wheel Wheel Wheel Wheel Wheel High-capacity Matter Pod Signal Interpreter Seismic Detector Seismic Detector Beam Rifle Autogun Autogun Autogun Autogun [Rating: 12] Favorites ----------- Power Ion Engine Engine Ion Engine Propulsion Wheel Wheel Wheel Utility Large Storage Unit Device Disposable Heat Sink Storage Large Storage Unit Protection Light Armor Plating Weapon Assault Rifle Energy Gun Medium Laser Ballistic Gun Assault Rifle Build | -11 -10 -9 -9 ------- Run | Yrd Mat Mat Min Slots Evolved 2 | . . 2 . Power . | . . . . Propulsion . | . . . . Utility 1 | . . 1 . Weapon 1 | . . 1 . Parts Attached 15 | 8 1 6 . Power 2 | 1 . 1 . Engine 2 | 1 . 1 . Core . | . . . . Reactor . | . . . . Propulsion 3 | 2 . 1 . Treads . | . . . . Leg . | . . . . Wheel 3 | 2 . 1 . Hover . | . . . . Flight . | . . . . Utility 5 | 2 1 2 . Device 2 | 1 . 1 . Storage 2 | 1 1 . . Processor . | . . . . Hackware . | . . . . Protection 1 | . . 1 . Artifact . | . . . . Weapon 5 | 3 . 2 . Energy Gun 3 | 2 . 1 . Energy Cannon . | . . . . Ballistic Gun 2 | 1 . 1 . Ballistic Cannon . | . . . . Launcher . | . . . . Special Weapon . | . . . . Impact Weapon . | . . . . Slashing Weapon . | . . . . Piercing Weapon . | . . . . Special Melee Weapon . | . . . . Unidentified Prototypes . | . . . . Parts Lost . | . . . . Power . | . . . . Propulsion . | . . . . Utility . | . . . . Weapon . | . . . . Highest Loss Streak . | . . . . To Critical Strikes . | . . . . Average Slot Usage (%) 98 | . 100 98 100 Engine 11 | . 14 11 11 Wheel 23 | . 28 22 22 Device 13 | . 14 14 11 Storage 11 | . 14 11 11 Protection 5 | . . 5 11 Energy Gun 15 | . 14 14 22 Ballistic Gun 15 | . 14 18 11 Peak Build Rating 12 | 7 8 12 12 Average Rating 9 | 5 7 11 12 On Entrance 6 | . 7 8 12 Naked Turns . | . . . . Heaviest Build 34 | 13 28 34 34 Greatest Support 20 | 20 20 20 20 Greatest Overweight (x) 1 | . 1 1 1 Average Overweight (x) . | . . 1 1 Largest Inventory Capacity 15 | 8 15 15 15 Average Capacity 13 | 7 13 15 15 Most Carried 15 | 8 13 15 15 Average Carried 12 | 3 9 14 15 Final Capacity 15 | 8 15 15 15 Final Carried 15 | 8 13 15 15 Class Distribution -------------------- 44% | Tank 29% | Mutant 26% | Gunner Dominant Class ---------------- Mutant | -10/Materials Tank | -9/Materials Tank | -9/Mines Resources | -11 -10 -9 -9 ----------- Run | Yrd Mat Mat Min Matter Collected 694 | 301 13 380 . Remotely . | . . . . Salvage Created 751 | 176 14 561 . Parts 52 | 14 4 34 . Haulers Intercepted . | . . . . Recyclers Shooed 1 | . . 1 . Parts Field Recycled . | . . . . Retrieved Matter . | . . . . Parts Self-Destructed . | . . . . Prevented . | . . . . Kills | -11 -10 -9 -9 ------- Run | Yrd Mat Mat Min Combat Hostiles Destroyed 12 | . . 12 . Guns 12 | . . 12 . Classes Destroyed 6 | 2 1 3 . Tunneler 5 | 4 . 1 . Recycler 3 | 1 . 2 . Watcher 3 | . 1 2 . Swarmer 7 | . . 7 . Grunt 4 | . . 4 . Brawler 1 | . . 1 . Best Kill Streak 13 | 5 1 13 . Combat Bots Only 8 | . . 8 . Max Kills in Single Turn 1 | 1 1 1 . Gunslinging . | . . . . Exploded . | . . . . Melee . | . . . . Uniques/NPCs Destroyed . | . . . . Combat | -11 -10 -9 -9 -------- Run | Yrd Mat Mat Min Hostile Shots Fired 31 | . . 31 . Missed 9 | . . 9 . Damage Taken 220 | . . 220 . Core 37 | . . 37 . Absorbed by Shields . | . . . . Core Remaining (%) 100 | 100 100 . . Volleys Fired 39 | 7 1 31 . Largest 3 | 2 2 3 . Hottest 110 | 70 70 110 . Shots Fired 108 | 14 2 92 . Gun 108 | 14 2 92 . Cannon . | . . . . Launcher . | . . . . Special . | . . . . Kinetic 66 | 7 1 58 . Thermal 42 | 7 1 34 . Explosive . | . . . . Electromagnetic . | . . . . Robot Hit Streak 11 | 3 4 11 . Robot Miss Streak 3 | 1 . 3 . Penetration Max . | . . . . Secondary Targets . | . . . . Shots Hit Robots 67 | 10 1 56 . Core Hits 31 | 6 1 24 . Critical Kills . | . . . . Critical Parts Destroyed . | . . . . Critical Strikes 3 | 1 . 2 . Burn 3 | 1 . 2 . Melee Attacks . | . . . . Impact . | . . . . Slashing . | . . . . Piercing . | . . . . Sneak Attacks . | . . . . Combat Hostiles . | . . . . Follow-up Attacks . | . . . . Damage Inflicted 779 | 122 13 644 . Guns 779 | 122 13 644 . Cannons . | . . . . Explosions . | . . . . Melee . | . . . . Ramming . | . . . . Kinetic 414 | 71 . 343 . Thermal 365 | 51 13 301 . Explosive . | . . . . Electromagnetic . | . . . . Impact . | . . . . Slashing . | . . . . Piercing . | . . . . Highest Corruption . | . . . . Average Corruption . | . . . . Corruption Purged . | . . . . Corruption Blocked . | . . . . Overload Shots . | . . . . Overflow Damage . | . . . . Projectiles . | . . . . Explosions . | . . . . Melee . | . . . . Knockbacks . | . . . . Impact . | . . . . Kinetic . | . . . . Secondary . | . . . . Self-Inflicted Damage . | . . . . Shots . | . . . . Rammed . | . . . . Targets Rammed . | . . . . Kicked . | . . . . Crushed . | . . . . Highest Temperature 138 | 27 9 138 . Average Temperature 37 | 10 6 42 . Received Heat Transfer 66 | . . 66 . Siege Activations . | . . . . Robots Corrupted . | . . . . Combat Hostiles . | . . . . Parts Fried . | . . . . Impact Corruptions . | . . . . Robots Melted . | . . . . Combat Hostiles . | . . . . Parts Melted 2 | . . 2 . Heat Transferred 1283 | 222 37 1024 . Parts Sabotaged . | . . . . Parts Stolen . | . . . . Parts Stripped . | . . . . Power Chain Reactions . | . . . . Alert | -11 -10 -9 -9 ------- Run | Yrd Mat Mat Min Peak Influence 450 | 25 34 450 97 Initial 97 | . 16 14 97 Average 142 | 10 30 225 97 Maximum Alert Level 2 | . . 2 . Low Security (%) 67 | 100 100 38 100 Level 1 23 | . . 44 . Level 2 9 | . . 16 . Level 3 . | . . . . Level 4 . | . . . . Level 5 . | . . . . High Security . | . . . . Max Security . | . . . . Squads Dispatched . | . . . . Investigation . | . . . . Extermination . | . . . . Reinforcement . | . . . . Assault . | . . . . Garrison . | . . . . Intercept . | . . . . Searches Triggered . | . . . . Construction Impeded . | . . . . Haulers Reinforced . | . . . . Active Scanning Responses . | . . . . Cargo Convoy Interrupts . | . . . . Stealth | -11 -10 -9 -9 --------- Run | Yrd Mat Mat Min Distress Signals 1 | . . 1 . Communications Jammed . | . . . . Distress Signals . | . . . . Times Spotted 22 | . 1 21 . Peak Tracking Total 7 | . 1 7 . Tactical Retreats 2 | . . 2 . Traps | -11 -10 -9 -9 ------- Run | Yrd Mat Mat Min Traps Triggered . | . . . . Indirectly . | . . . . Trap Hack Attempts . | . . . . Triggered . | . . . . Disarmed . | . . . . Reprogrammed . | . . . . Reused . | . . . . Traps Extracted . | . . . . Installed . | . . . . Triggered . | . . . . Machines | -11 -10 -9 -9 ---------- Run | Yrd Mat Mat Min Machines Disabled . | . . . . Max in Single Turn . | . . . . Machines Repaired . | . . . . Machines Dismantled . | . . . . Machines Sabotaged . | . . . . Overloaded Fab Kills . | . . . . Hacking | -11 -10 -9 -9 --------- Run | Yrd Mat Mat Min Machines Accessed 7 | . 2 4 1 Terminals 5 | . 2 3 . Fabricators . | . . . . Repair Stations . | . . . . Recycling Units . | . . . . Scanalyzers 1 | . . 1 . Garrison Access . | . . . . Total Hacks 20 | . 8 11 1 Successful 11 | . 5 5 1 Failed 9 | . 3 6 . Catastrophic 2 | . . 2 . Database Lockouts . | . . . . Manual 15 | . 5 10 . Terminals 18 | . 8 10 . Fabricators . | . . . . Repair Stations . | . . . . Recycling Units . | . . . . Scanalyzers 1 | . . 1 . Garrison Access . | . . . . Terminal Hacks 5 | . 2 2 1 Robot Analysis 1 | . . 1 . Open Door 1 | . . . 1 Branch Access Points 2 | . 1 1 . Locate Traps 1 | . 1 . . Fabricator Hacks . | . . . . Repair Station Hacks . | . . . . Recycling Unit Hacks . | . . . . Scanalyzer . | . . . . Garrison Access Hacks . | . . . . Unauthorized Hacks 6 | . 3 3 . Terminals 6 | . 3 3 . Botnet 4 | . 2 2 . Operators 2 | . 1 1 . Fabricators . | . . . . Repair Stations . | . . . . Recycling Units . | . . . . Scanalyzers . | . . . . Garrison Access . | . . . . Data Cores Recovered . | . . . . Used . | . . . . Hacking Detections 6 | . 2 4 . Full Trace Events . | . . . . Feedback Events . | . . . . Feedback Blocked . | . . . . Robot Schematics Acquired . | . . . . Robots Built . | . . . . Authchips . | . . . . Time . | . . . . Total Robot Build Rating . | . . . . Part Schematics Acquired . | . . . . Parts Built . | . . . . Authchips . | . . . . Time . | . . . . Total Part Build Rating . | . . . . Parts Repaired . | . . . . Time . | . . . . Parts Recycled . | . . . . Recycled Matter . | . . . . Retrieved Matter . | . . . . Retrieved Components . | . . . . Parts Scanalyzed . | . . . . Part Schematics Acquired . | . . . . Parts Damaged . | . . . . Bothacking | -11 -10 -9 -9 ------------ Run | Yrd Mat Mat Min Used RIF Installer . | . . . . Robots Hacked . | . . . . Non-combat . | . . . . Combat . | . . . . Robot Hacks Applied . | . . . . Relay Couplers Released . | . . . . Fabnet Peak Effective % . | . . . . Robots Rewired . | . . . . Allies Hacked . | . . . . Hacks Repelled . | . . . . Allies | -11 -10 -9 -9 -------- Run | Yrd Mat Mat Min Total Allies . | . . . . Largest Group . | . . . . Highest-Rated Group . | . . . . Highest-Rated Ally . | . . . . Total Orders . | . . . . Ally Attacks . | . . . . Total Damage . | . . . . Kills . | . . . . Allies Corrupted . | . . . . Allies Melted . | . . . . Intel | -11 -10 -9 -9 ------- Run | Yrd Mat Mat Min Robot Analysis Total 1 | . . 1 . Derelict Logs Recovered 1 | . . . 1 Drone Launches . | . . . . Drone Recoveries . | . . . . Exploration | -11 -10 -9 -9 ------------- Run | Yrd Mat Mat Min Turns Passed 921 | 116 172 495 138 Spaces Moved 727 | 82 170 332 143 Core 1 | 1 . . . Treads . | . . . . Legs . | . . . . Wheels 726 | 81 170 332 143 Hover . | . . . . Flight . | . . . . Fastest Speed 50 | 50 80 95 95 Average Speed 92 | 79 92 95 95 Slowest Speed 95 | 80 95 95 95 Overloaded Moves . | . . . . Propulsion Burnouts . | . . . . Robots Hopped . | . . . . Cave-ins Triggered . | . . . . Exploration Rate (%) 26 | 3 37 27 37 Regions Visited 3 Branch Regions 1 Pre-discovered Areas 2 | . . . 2 Known Exits Taken 1 | . . 1 . Unknown Exits Taken 2 | 1 1 . . Scrap Searched . | . . . . Spaces Dug . | . . . . Terrain Destroyed . | . . . . Melee . | . . . . Projectile . | . . . . AOE . | . . . . Terrain Rammed . | . . . . Walls Destroyed . | . . . . Machines Disabled . | . . . . Actions | -11 -10 -9 -9 --------- Run | Yrd Mat Mat Min Total 898 | 114 192 447 145 Wait 82 | 10 1 71 . Move 724 | 81 169 331 143 Hop . | . . . . Pick Up 23 | 7 12 3 1 Fast Attach 11 | 8 . 3 . Attach 1 | . . 1 . Detach 3 | 1 . 2 . Swap 3 | . 1 2 . Drop 12 | . 8 3 1 Fire 39 | 7 1 31 . Melee . | . . . . Ram . | . . . . Kick . | . . . . Crush . | . . . . Escape Stasis . | . . . . Rewire . | . . . . Trap . | . . . . Miscellaneous . | . . . . Route ------- -11/Scrapyard -10/Materials (discovered 2 exits: *Mat / Min) -9/Materials (discovered 2 exits: *Min x2) -9/Mines (discovered 2 exits: [*Mat] / [*Zio]) History --------- Turn | Location | Event 11 | -11/Scrapyard | Discovered new exit (range 15) 117 | -11/Scrapyard | Entered Materials 120 | -10/Materials | Identified exit to Mines 272 | -10/Materials | Discovered new exit (range 3) 289 | -10/Materials | Entered another Materials area 289 | -9/Materials | Evolved 2 slots: Utility x1, Weapon x1 390 | -9/Materials | Discovered new exit (range 16) 392 | -9/Materials | Identified exit to Mines 585 | -9/Materials | Destroyed 8 combat bots 784 | -9/Materials | Entered Mines 791 | -9/Mines | Met a Derelict who couldn't figure out how to use a Trap Extractor 814 | -9/Mines | Learned location of Zion (-7) 815 | -9/Mines | Build established: Tank 834 | -9/Mines | A Derelict revealed a hidden shortcut to a safe place 850 | -9/Mines | Received a Rocket Launcher from a helpful Derelict 915 | -9/Mines | Learned location of Storage (-7) 915 | -9/Mines | Discovered new exit (range 8) 922 | -9/Mines | Self-destructed Last Messages --------------- way." 00848_ LI-LWU(g): "Need to get rid of a swarm? Done. Need a big hole in the wall? Done." 00849_ LI-LWU(g): "Need a small hole in the wall? Leave that to the mining laser wimps, I say!" 00850_ LI-LWU(g): "Would you like a rocket launcher? I know I would if I were you, so I'm going to lend you mine." 00850_ LI-LWU(g) slips back into the shadows. 00853_ Dropped Wheel. 00853_ Acquired Rocket Launcher. 00895_ K-01 Serf collects debris. 00915_ A derelict emerges from the shadows: "Are any of them following you? I'm here trying to lose some heat after our second raid on Storage failed. Whatever you do stay away from that place, they've tightened security following our previous successful raids." World map updated: -7/Storage. 00915_ EXIT=FOUND 00917_ RD-PZQ(g): "We scattered so the Unaware couldn't effectively use their advantage in numbers, and I suggest you do the same." 00917_ RD-PZQ(g) slips back into the shadows. Map ----- +----------------------------------------------------+ | ????????????????????????????? | | ????????????????????????????? | | ????????????????????????????? | | ????????????????????????????? | | ????????????????????????????? | | ????????????????????????????? | | ????????????????????????????? | | ????????????????????????????? | | ????????????????????????????? | | ????????????????????????????? | | ????????????????????????????? | | ????????????????????????????? | | ????????????????????????????? | | ????????????????????????????? | | ????????????????????????????? | | ???????????????????## ??????? | | ?????????????????? ??????? | | ?????????????????? ??????? | | ?????????????????? ??????? | | ??????????????????# ??????? | | ???####???????????# ??????? | | ??## ##??????????# #??????? | | ?## ##?????????? #??????? | | ?# ##????????? ##?????? | | ?# < #####????? ??????? | | ?# @ #?????# #??????? | | ??# #????## #??????? | | ??### ### #???## ####???? | | ????#####?# #??## ##??? | | ??????????# #### ##?? | | ??????????# ##? | | ??????????# ### #? | | ??????????###########?### ## | | ????????????????????????## # | | ????????????????????????## | | ???????????????????????## | | ???????????????????????# | | ???????????????????????# | | ???????????????????????# | | ???????????????????????## | | ???????????????????????## | | ??????????????????????## | | ?????????????????????## | | ?????????????????????# | | ?????????????????????# | | ?????????????????????# | | ?????????????????????# | | ?????????????????????# # | | ?????????????????????## # | | ??????????????????????#### # | +----------------------------------------------------+ Best States ------------- Heat Dissipation 28 Coolant Potential 50 Energy Generation 10 Energy Capacity 250 Matter Stores 300 Matter Capacity 300 Sight Range 16 Terrain Scan Density 10 Armor Coverage 150 Evasion (%) 44 Item Schematics ----------------- None Robot Schematics ------------------ None Fabricated ------------ Nothing Alien Tech Used ----------------- None Achievements -------------- None Challenges ------------ None Game ------ Seed TechQuantumMediator Manual? 0 Play Time 00:13:28 Cumulative 136.5 hours Start 2025.03.08 @ 09:32:02 End 2025.03.08 @ 09:45:58 Sessions 1 Manual Loads 0 Difficulty Rogue Special Mode None Game No. 67 Rogue 63 Adventurer 2 Explorer 2 Win Type - Total 2 Types 1/0/1/0/0/0/0/0/0 Lore% 59 Gallery% 66 Achievement% 51 Wizard Run 0 Options --------- Layout 0 ASCII 0 Keyboard 1 Movement Arrows Keybinds 0 Fullscreen 2 Font 18/Terminus Map View 76x50 Zoom Use 0% Tactical HUD 1 Map Filters NONE Filters NONE Steam 1 RUN: 252dbb32-09a1-4a26-b76d-c3cfe8f0cc03